[Event "Israel National League 2024"]
[Site "Israel"]
[Date "2024.01.12"]
[Round "2.1"]
[White "Tzidkiya, Yeshaayahu"]
[Black "Nabaty, Tamir"]
[Result "1-0"]
[ECO "C78"]
[WhiteElo "2448"]
[BlackElo "2646"]
[Annotator "TA"]
[PlyCount "163"]
[EventDate "2024.01.07"]
[EventType "team-tourn"]
[EventCountry "ISR"]
[SourceTitle "playchess.com"]
[Source "ChessBase"]
[SourceQuality "1"]
[TimeControl "40/5400+30:1800+30"]

{[%evp 12,163,9,1,18,22,16,-2,0,0,0,-11,0,0,-9,-38,-21,-20,-21,-59,-8,-15,-15,-11,-12,-18,41,35,55,26,89,95,99,23,29,35,105,112,113,106,110,79,79,75,109,105,212,216,229,229,226,217,220,209,193,211,287,214,203,171,153,154,158,164,158,161,159,139,184,161,183,183,183,183,180,180,183,173,170,180,180,120,278,272,263,245,259,259,256,247,401,392,993,810,7637,810,683,0,2052,732,886,908,6797,354,339,0,12825,12827,12611,6020,12820,490,2463,1753,12835,12835,12835,12835,12834,12833,12841,12839,12840,12840,12841,12841,12841,12842,12842,12843,12844,12844,12845,12845,12846,12846,12850,12850,12850,27999,27999,27999,27999,27999,27999,27999,27999,27999,27999,27999,27999,27999,27999,27999]} 1. e4 {[%emt 0:00:05]} e5 {[%emt 0:00:12]} 2. Nf3 {[%emt 0:00:07]} Nc6 {[%emt 0:00:14]} 3. Bb5 {[%emt 0:00:43]} a6 {[%emt 0:00:15]} 4. Ba4 {[%emt 0:00:06]} Nf6 {[%emt 0:00:08]} 5. d3 {[%emt 0:03:04]} Bc5 {[%emt 0:00:10]} 6. O-O {[%emt 0:05:45]} d6 {[%emt 0:01:06]} 7. c3 {[%emt 0:00:23]} Ba7 {[%emt 0:00:19] C78: Ruy Lopez: Archangelsk and Möller Defences.} (7... O-O 8. Bg5 h6 9. Bh4 g5 10. Bg3 Ba7 11. Nbd2 Ne7 12. d4 Nh5 13. dxe5 Nxg3 14. hxg3 Ng6 15. exd6 Qxd6 16. Nd4 Bxd4 17. cxd4 Qxd4 18. Bb3 Qxb2 19. Rc1 c6 {1-0 Tzidkiya,Y (2415)-Nabaty,T (2632) ISR-chT Israel 2023 (9.2)}) 8. Re1 {[%emt 0:16:58]} O-O {[%emt 0:01:57]} 9. Bg5 {[%emt 0:06:29]} h6 {[%emt 0:01:20] The position is equal.} 10. Bh4 {[%emt 0:00:04]} g5 {[%emt 0:00:22]} 11. Bg3 {[%emt 0:02:32]} g4 {[%emt 0:14:49]} 12. Nh4 {[%emt 0:30:28]} Nh5 {[%emt 0:07:02]} 13. Nd2 {[%emt 0:03:02] [#]} Qf6 $146 {[%emt 0:08:28]} ({Predecessor:} 13... Qg5 14. Nf1 Bd7 15. Ne3 Bxe3 16. Rxe3 b5 17. Bb3 Na5 18. Bc2 c5 19. Re1 Nc6 {1-0 Libersan,T (2118)-Robichaud,L (2025) Quebec-ch opB 2010 (8)}) 14. Kh1 {[%emt 0:10:26]} Ne7 {[%emt 0:02:07]} (14... Bxf2 $2 15. Rf1 $18) 15. Bb3 {[%emt 0:02:23]} b5 {[%emt 0:23:12]} (15... Bxf2 $2 16. Rf1 $18) (15... Kg7 $15) 16. a4 $11 {[%emt 0:04:48]} Bd7 {[%emt 0:00:40]} (16... Bxf2 $2 17. Rf1 $18) 17. axb5 {[%emt 0:00:05]} axb5 {[%emt 0:00:06]} 18. Nf5 {[%emt 0:07:13]} Bxf5 {[%emt 0:04:51]} (18... Nxg3+ $11 19. fxg3 h5) 19. exf5 $14 {[%emt 0:00:04]} Qxf5 {[%emt 0:00:46]} 20. d4 {[%emt 0:00:08][%cal Rg3e5] Threatens to win with Bxe5!} c6 {[%emt 0:16:15] [#]} (20... Bb6 $11 {remains equal.}) 21. Bxe5 $1 $16 {[%emt 0:01:41]} Qd7 {[%emt 0:09:17] [#]} (21... dxe5 $2 22. Rxe5 Qxf2 23. Rxe7 $16) 22. Bxd6 {[%emt 0:04:13]} Qxd6 $11 {[%emt 0:03:41]} 23. Qxg4+ {[%emt 0:00:03]} Ng7 {[%emt 0:01:26]} (23... Qg6 $14 24. Qd7 Nd5) 24. Ne4 $16 {[%emt 0:00:17]} Qg6 {[%emt 0:00:06]} 25. Qxg6 {[%emt 0:00:56]} Nxg6 {[%emt 0:00:02]} 26. Nf6+ {[%emt 0:00:04]} Kh8 {[%emt 0:00:05][%cal Og7e6]} 27. Ra6 $36 {[%emt 0:00:04][%mdl 2048] White is on the roll. White has more active pieces.} Bxd4 {[%emt 0:04:32][%mdl 64] Discovered Attack, Double Attack} 28. Rxa8 {[%emt 0:00:10]} Bxf6 {[%emt 0:00:02]} (28... Rxa8 $16 {might work better.} 29. cxd4 Nf5) 29. Rxf8+ $18 {[%emt 0:00:55]} Nxf8 {[%emt 0:00:02]} 30. Bxf7 {[%emt 0:01:16]} Nf5 {[%emt 0:01:26]} 31. Be8 {[%emt 0:00:21]} Ne7 {[%emt 0:00:13]} 32. f4 {[%emt 0:01:03]} Kg7 {[%emt 0:00:25]} 33. g3 {[%emt 0:00:04]} Nh7 {[%emt 0:00:51]} 34. Re6 {[%emt 0:00:41]} Nf8 {[%emt 0:00:16]} 35. Rd6 {[%emt 0:01:19]} b4 36. cxb4 {[%emt 0:00:00]} Bxb2 {[%emt 0:00:27]} 37. Bxc6 {[%emt 0:00:09] Bf3 is the strong threat.} Ba3 {[%emt 0:00:03]} 38. Be4 {[%emt 0:00:40] Hoping for Rb6.} Bxb4 {[%emt 0:00:02]} 39. Ra6 {[%emt 0:01:11]} Nd7 {[%emt 0:00:50]} 40. Kg2 {[%emt 0:00:30]} Nc5 {[%emt 0:01:32]} 41. Rb6 {[%emt 0:29:01]} Bc3 {[%emt 0:13:54]} 42. Bc2 {[%emt 0:00:00]} Bd4 {[%emt 0:03:29]} 43. Rd6 {[%emt 0:00:00]} Bf6 {[%emt 0:00:30]} 44. Kf3 {[%emt 0:00:00]} Nb7 {[%emt 0:00:30]} 45. Rb6 {[%emt 0:00:00]} Nc5 {[%emt 0:02:57]} 46. h4 {[%emt 0:00:00]} (46. h3 $18) 46... Nd7 $2 {[%emt 0:03:00]} (46... h5 $16 {was necessary.} 47. Rd6 Nb7) 47. Rd6 {[%emt 0:00:00]} Nc5 {[%emt 0:01:21] [#]} 48. h5 $1 {[%emt 0:00:00]} Nb7 {[%emt 0:01:15]} 49. Rb6 {[%emt 0:00:00]} Nd8 {[%emt 0:02:11]} 50. g4 {[%emt 0:00:00][%cal Og4g5]} Nc8 $2 {[%emt 0:04:27]} (50... Bd4 51. Rd6 Ndc6) 51. Ra6 {[%emt 0:00:00][%cal Og4g5]} Nf7 {[%emt 0:00:05]} (51... Kf7 52. g5 hxg5) 52. Bb3 {[%emt 0:00:00] aiming for Be6.} Ne7 {[%emt 0:00:37]} 53. Rb6 {[%emt 0:02:23]} (53. Bxf7 $142 Kxf7 54. Rb6) 53... Nc8 {[%emt 0:00:16]} 54. Ra6 {[%emt 0:03:35]} (54. Rc6 $142) 54... Ne7 $1 {[%emt 0:00:02]} 55. Ke4 {[%emt 0:00:50]} (55. Bxf7 $142 Kxf7 56. Ke4) 55... Nd8 {[%emt 0:01:27]} 56. Bd5 {[%emt 0:00:36][%cal Og4g5] g5! would be deadly.} Nf7 {[%emt 0:00:20]} 57. Rb6 $2 {[%emt 0:01:00]} (57. Bxf7 Kxf7 58. Ra5) 57... Nc8 {[%emt 0:00:44]} 58. Ra6 {[%emt 0:00:11]} (58. Re6) 58... Ne7 $1 {[%emt 0:00:27]} 59. Bxf7 {[%emt 0:01:06]} Kxf7 {[%emt 0:00:02]} 60. Ra5 {[%emt 0:00:07]} (60. Rb6 $142 Nc8 61. Rc6) 60... Nc6 {[%emt 0:02:18]} 61. Rc5 {[%emt 0:00:07]} (61. Rb5 $142 {And now g5 would win.} Nd8 62. g5) 61... Nd8 {[%emt 0:00:36]} (61... Ne7 $142 62. g5 hxg5 63. fxg5 Bb2) 62. Rb5 {[%emt 0:01:30] Black must now prevent Rb6.} Ne6 {[%emt 0:00:44]} 63. Rb7+ {[%emt 0:00:05]} Be7 {[%emt 0:00:18]} 64. Ke5 {[%emt 0:00:20]} Nc5 {[%emt 0:00:48]} 65. Ra7 {[%emt 0:00:10]} Ne6 {[%emt 0:00:12]} 66. f5 {[%emt 0:01:23][%cal Bf4f5,Bf5f6][%mdl 32]} Nd8 {[%emt 0:00:11]} 67. Rc7 {[%emt 0:00:04]} Ke8 {[%emt 0:01:04]} 68. f6 {[%emt 0:00:06]} Nf7+ {[%emt 0:00:26]} 69. Kf5 {[%emt 0:00:28]} Bd8 {[%emt 0:00:38]} 70. Ra7 {[%emt 0:00:39]} Kf8 {[%emt 0:00:29]} 71. Ra8 {[%emt 0:00:21]} Kg8 {[%emt 0:00:33]} 72. Kg6 {[%emt 0:01:12]} Ne5+ {[%emt 0:00:29]} 73. Kxh6 {[%emt 0:00:24]} Nxg4+ {[%emt 0:00:17]} 74. Kg5 {[%emt 0:00:05]} Kf7 {[%emt 0:00:14]} 75. Rxd8 {[%emt 0:00:25]} (75. Kxg4 $18 Bxf6 76. Kf5 Bd4 77. Rd8 Be3 78. Rd7+ Ke8 79. Rb7 Bh6 80. Kg6) 75... Nxf6 {[%emt 0:00:02][%mdl 4096] Endgame KR-KN. White mates.} 76. h6 {[%emt 0:00:14]} Nh7+ {[%emt 0:00:31]} 77. Kf5 {[%emt 0:00:04]} Nf8 {[%emt 0:01:10]} 78. Ra8 {[%emt 0:00:07]} Nh7 {[%emt 0:00:05]} 79. Ra7+ {[%emt 0:00:15]} Kg8 {[%emt 0:00:01]} 80. Rg7+ {[%emt 0:00:37]} Kh8 {[%emt 0:00:01]} 81. Rf7 {[%emt 0:00:09]} Kg8 {[%emt 0:00:41]} 82. Kg6 {[%emt 0:00:06] Weighted Error Value: White=0.42/Black=0.27 (precise)} 1-0

[Event "Israel National League 2024"]
[Site "Israel"]
[Date "2024.01.12"]
[Round "2.2"]
[White "Roiz, Michael"]
[Black "Aizenberg, Benny"]
[Result "1/2-1/2"]
[ECO "B51"]
[WhiteElo "2575"]
[BlackElo "2396"]
[Annotator "TA"]
[PlyCount "116"]
[EventDate "2024.01.07"]
[EventType "team-tourn"]
[EventCountry "ISR"]
[SourceTitle "playchess.com"]
[Source "ChessBase"]
[SourceQuality "1"]
[TimeControl "40/5400+30:1800+30"]

{[%evp 9,116,13,10,18,33,38,29,20,75,60,74,64,65,52,71,49,71,70,74,65,70,70,71,70,70,72,72,57,64,57,70,56,93,86,96,94,93,64,64,64,64,36,62,46,62,28,36,32,52,52,108,73,78,66,68,68,65,66,68,66,66,66,72,54,129,93,110,93,129,93,93,95,95,95,95,95,95,95,139,144,139,139,139,141,146,146,139,139,1070,0,0,0,1018,739,905,73,73,0,805,33,60,62,75,77,76,0,0,0,0]} 1. e4 {[%emt 0:00:03]} c5 {[%emt 0:00:05]} 2. Nf3 {[%emt 0:00:05]} d6 {[%emt 0:00:04]} 3. Bb5+ {[%emt 0:00:20]} Nd7 {[%emt 0:00:06]} 4. O-O {[%emt 0:00:11]} a6 {[%emt 0:00:04]} 5. Be2 {[%emt 0:00:08]} Ngf6 {[%emt 0:00:09]} 6. d3 {[%emt 0:00:10] B51: Sicilian: Moscow Variation (3 Bb5+) without 3...Bd7.} g6 {[%emt 0:01:11]} 7. c4 $1 {[%emt 0:00:33] The main line 7.c4 scores better than 7.a4.} Bg7 {[%emt 0:03:41]} 8. Nc3 {[%emt 0:00:57] [#] White has an edge.} Ne5 $146 {[%emt 0:07:10]} (8... O-O $11 {remains equal.}) ({Predecessor:} 8... b6 9. d4 cxd4 10. Nxd4 Bb7 11. f3 O-O 12. Nb3 b5 13. cxb5 axb5 14. Bxb5 d5 15. exd5 {1-0 Rapport,R (2748)-Wojtaszek,R (2668) EU-chT 24th Budva 2023 (5.1)}) 9. Nxe5 $16 {[%emt 0:08:48]} dxe5 {[%emt 0:00:05]} 10. Be3 {[%emt 0:03:55]} Qd6 {[%emt 0:02:02]} 11. a3 {[%emt 0:00:42][%cal Ob2b4]} O-O {[%emt 0:03:05]} 12. Rb1 {[%emt 0:04:29]} Nd7 {[%emt 0:09:47]} 13. b4 {[%emt 0:02:39]} b6 {[%emt 0:03:09]} 14. Qc2 {[%emt 0:15:04]} Rd8 {[%emt 0:08:40]} 15. Na4 {[%emt 0:02:00]} e6 {[%emt 0:05:59]} 16. Rb2 {[%emt 0:05:45]} Bf8 {[%emt 0:01:49]} 17. bxc5 {[%emt 0:03:26]} bxc5 {[%emt 0:00:05]} 18. Qc3 {[%emt 0:01:22]} Qc7 {[%emt 0:02:13]} 19. Rfb1 {[%emt 0:00:34] White has more active pieces. The black rooks are badly placed.} Ra7 {[%emt 0:03:25]} 20. Bd2 {[%emt 0:01:03]} a5 {[%emt 0:01:23]} 21. Qc1 {[%emt 0:10:44]} Bb7 {[%emt 0:01:59]} 22. Nc3 {[%emt 0:00:45] aiming for Nb5.} Bc6 {[%emt 0:00:11]} 23. Qe1 {[%emt 0:08:48]} a4 {[%emt 0:03:15]} 24. Nb5 {[%emt 0:04:03]} Bxb5 {[%emt 0:00:06]} 25. Rxb5 {[%emt 0:00:03] Ba5 is the strong threat.} (25. cxb5 $5 {[%cal Rb5b6]} Rb7 26. Be3 $16 (26. Ba5 Nb6 $16)) 25... Rb8 {[%emt 0:01:43]} 26. Bd1 {[%emt 0:01:14]} Rxb5 {[%emt 0:01:50]} 27. Rxb5 {[%emt 0:00:03]} Nb8 {[%emt 0:00:17][%cal Bd7b8,Bb8c6,Bc6d4][%mdl 32]} 28. Ra5 {[%emt 0:06:28]} Rxa5 {[%emt 0:03:21]} 29. Bxa5 {[%emt 0:00:12]} Qb7 {[%emt 0:00:45]} (29... Qd6 $1 $14) 30. Bc3 {[%emt 0:08:23]} Qa7 {[%emt 0:08:59]} 31. Bc2 {[%emt 0:04:57]} Nc6 {[%emt 0:01:03]} 32. Qd1 {[%emt 0:00:05]} Nd4 {[%emt 0:00:09]} 33. Bxa4 {[%emt 0:00:08]} Bh6 {[%emt 0:00:11][%cal Oh6c1]} 34. Bb2 {[%emt 0:03:12] Against Bc1} Qb6 {[%emt 0:00:42] [#]} 35. Bb5 $1 {[%emt 0:02:53]} Qa5 {[%emt 0:03:57] Inhibits Bc3.} 36. Kf1 {[%emt 0:01:52]} f5 {[%emt 0:00:46]} (36... Bd2 $14) 37. exf5 {[%emt 0:01:03]} exf5 {[%emt 0:00:24]} 38. Qe1 {[%emt 0:00:48]} Qc7 {[%emt 0:00:34][%cal Oe5e4]} 39. h3 {[%emt 0:01:18]} e4 {[%emt 0:01:42]} 40. dxe4 {[%emt 0:00:33]} Qh2 {[%emt 0:00:08][%cal Rh2h1]} 41. Bxd4 {[%emt 0:30:06]} cxd4 {[%emt 0:30:28][%mdl 4096] Endgame KQB-KQB} 42. Qd1 {[%emt 0:00:00]} Qh1+ {[%emt 0:00:00]} 43. Ke2 {[%emt 0:00:00]} Qxg2 {[%emt 0:00:00]} 44. Qxd4 {[%emt 0:00:00] Hoping for Qd5+.} fxe4 {[%emt 0:00:00]} 45. c5 {[%emt 0:00:00]} Qf3+ {[%emt 0:00:00]} (45... Qxh3 46. Bc4+ (46. Qxe4 Qh5+ 47. Kd3 Qxc5 $11) 46... Kf8 47. Qd8+ (47. Qxe4 Qh5+ 48. Kd3 Qxc5 $14) 47... Kg7 48. Qe7+ Kh8 49. Qf6+ (49. Qxe4 Qh5+ 50. Kf1 Qh3+ 51. Kg1 Qf5 $16) 49... Bg7 50. Qd8+) 46. Ke1 {[%emt 0:00:00]} Bg7 {[%emt 0:00:00]} (46... e3 47. Bc4+ Kf8 48. Qd8+ (48. Qh8+ Ke7 $16) 48... Kg7 49. Qg8+ Kf6 50. Qf7+ (50. Qxh7 $2 Qxf2+ 51. Kd1 Qd2#) 50... Ke5 51. Qxf3 exf2+ 52. Kxf2) 47. Bc4+ {[%emt 0:00:00]} Kh8 {[%emt 0:00:00]} 48. Qd8+ {[%emt 0:00:00]} Bf8 $2 {[%emt 0:00:00][%mdl 8192]} (48... Qf8 $16 49. Qxf8+ Bxf8) 49. Qd4+ {[%emt 0:00:00]} Bg7 {[%emt 0:00:00]} 50. Qd8+ {[%emt 0:00:00]} Bf8 $1 {[%emt 0:00:00]} 51. c6 {[%emt 0:00:00] And now c7 would win.} Qxa3 {[%emt 0:02:55]} 52. Qd4+ $2 {[%emt 0:00:00]} (52. Bb3 $18 {is more deadly. White threatens c7 and mate.} Kg7 53. c7 Qc1+ 54. Ke2 Qb2+ 55. Qd2 Qxb3 56. Qd4+ (56. c8=B $2 {perishes.} Qc4+ 57. Kd1 Qxc8 $19) (56. c8=Q Qf3+ 57. Kf1 Qh1+ 58. Ke2 Qf3+ 59. Kf1 Qh1+ 60. Ke2 Qf3+ $11) 56... Kf7 57. c8=Q (57. c8=B $2 {loses.} Qc2+ 58. Kf1 Qxc8 $19)) 52... Bg7 {[%emt 0:00:04]} 53. Qd8+ {[%emt 0:00:00][%mdl 8192]} (53. Qxe4 $16 Qa1+ 54. Ke2) 53... Bf8 $18 {[%emt 0:00:06] Threatens to win with ...Qc1+.} 54. Qd5 $2 {[%emt 0:00:00]} ({Better is} 54. Bb3 $18 {White wants to mate with c7.} Qb4+ 55. Kf1) 54... Qc3+ {[%emt 0:07:34]} 55. Kd1 $1 {[%emt 0:00:00][%csl Gc4][%cal Rd5g8]} Qf3+ {[%emt 0:00:11] [#]} 56. Be2 $1 {[%emt 0:00:53]} Qc3 {[%emt 0:00:43]} 57. Bc4 {[%emt 0:00:19]} (57. Qd8 $16 {[%cal Rd8f8]} Qa1+ 58. Kd2 Qb2+ 59. Ke1 Qc1+ 60. Bd1) 57... Qf3+ $11 {[%emt 0:00:07]} 58. Kc1 {[%emt 0:01:24][%csl Gc4][%cal Rd5g8]} Qc3+ {[%emt 0:00:15] Weighted Error Value: White=0.47/Black=0.14 (very precise)} 1/2-1/2

[Event "Israel National League 2024"]
[Site "Israel"]
[Date "2024.01.12"]
[Round "2.3"]
[White "Baron, Tal"]
[Black "Steinberg, Nitzan"]
[Result "1/2-1/2"]
[ECO "C96"]
[WhiteElo "2490"]
[BlackElo "2551"]
[Annotator "TA"]
[PlyCount "45"]
[EventDate "2024.01.07"]
[EventType "team-tourn"]
[EventCountry "ISR"]
[SourceTitle "playchess.com"]
[Source "ChessBase"]
[SourceQuality "1"]
[TimeControl "40/5400+30:1800+30"]

{[%evp 25,45,39,44,12,21,31,33,22,33,18,31,30,11,23,78,22,45,34,34,30,25,25]} 1. e4 {[%emt 0:00:04]} e5 {[%emt 0:00:50]} 2. Nf3 {[%emt 0:00:07]} Nc6 {[%emt 0:00:05]} 3. Bb5 {[%emt 0:00:09][%cal Bf1b5,Bb5a4,Ba4b3][%mdl 32]} a6 {[%emt 0:02:16]} 4. Ba4 {[%emt 0:00:03]} Nf6 {[%emt 0:00:06]} 5. O-O {[%emt 0:00:09]} Be7 {[%emt 0:01:26]} 6. Re1 {[%emt 0:00:08]} b5 {[%emt 0:00:11]} 7. Bb3 {[%emt 0:00:02]} d6 {[%emt 0:00:14]} 8. c3 {[%emt 0:00:04]} O-O {[%emt 0:02:44]} 9. h3 {[%emt 0:00:05]} Na5 {[%emt 0:01:18]} 10. Bc2 {[%emt 0:00:07]} c5 {[%emt 0:00:04]} 11. d4 {[%emt 0:00:13]} Nd7 {[%emt 0:00:20]} 12. a4 {[%emt 0:02:08]} Rb8 {[%emt 0:00:53]} 13. axb5 {[%emt 0:05:16]} axb5 {[%emt 0:00:10]} 14. Nbd2 {[%emt 0:00:50] C96: Closed Ruy Lopez: Chigorin Defence: 11 d4, replies other than 11...Qc7.} Re8 {[%emt 0:10:51]} 15. Nf1 {[%emt 0:02:17]} exd4 {[%emt 0:20:13]} 16. cxd4 {[%emt 0:00:52] White is slightly better.} Nc6 {[%emt 0:01:56] [#]} 17. Bf4 $146 {[%emt 0:20:38]} ({Predecessor:} 17. Ne3 Nb6 18. dxc5 dxc5 19. Nd5 Be6 20. Bf4 Rb7 21. Nxe7+ Rbxe7 22. Qxd8 Rxd8 23. Ng5 {½-½ Haria,R (2034)-Lee,D (1842) Wch U14 Maribor 2012 (7.43)}) 17... cxd4 {[%emt 0:11:00]} 18. Nxd4 {[%emt 0:01:07]} Nxd4 {[%emt 0:01:44]} 19. Qxd4 {[%emt 0:00:45]} Bf6 {[%emt 0:03:28]} (19... Ne5 $11 {keeps the balance.}) 20. Qb4 {[%emt 0:11:02] White is much more active.} ({White should play} 20. Qxd6 $16 {And now e5 would win.} Rb6 21. Qb4) 20... Be5 {[%emt 0:00:10]} 21. Bg3 {[%emt 0:05:40]} Qb6 {[%emt 0:04:35]} 22. Red1 {[%emt 0:06:51]} Qc5 {[%emt 0:02:29]} 23. Qd2 {[%emt 0:13:02] Weighted Error Value: White=0.19 (very precise) /Black=0.14 (very precise)} 1/2-1/2

[Event "Israel National League 2024"]
[Site "Israel"]
[Date "2024.01.12"]
[Round "2.4"]
[White "Kobo, Ori"]
[Black "Flom, Gabriel"]
[Result "1-0"]
[ECO "E90"]
[WhiteElo "2541"]
[BlackElo "2421"]
[Annotator "TA"]
[PlyCount "59"]
[EventDate "2024.01.07"]
[EventType "team-tourn"]
[EventCountry "ISR"]
[SourceTitle "playchess.com"]
[Source "ChessBase"]
[SourceQuality "1"]
[TimeControl "40/5400+30:1800+30"]

{[%evp 18,59,45,45,81,81,104,64,66,76,87,66,81,90,91,62,115,119,134,131,127,112,127,114,125,128,117,114,110,60,362,345,2510,1779,29983,29984,29984,29985,29985,29986,29986,29987,29987,29988]} 1. Nf3 {[%emt 0:00:05]} Nf6 {[%emt 0:07:42]} 2. c4 {[%emt 0:00:17]} g6 {[%emt 0:00:21]} 3. Nc3 {[%emt 0:00:14]} Bg7 {[%emt 0:00:04]} 4. e4 {[%emt 0:00:11]} d6 {[%emt 0:00:08]} 5. d4 {[%emt 0:00:08]} O-O {[%emt 0:00:09]} 6. Bd3 {[%emt 0:00:12]} c5 {[%emt 0:03:39]} 7. d5 {[%emt 0:00:40]} e6 {[%emt 1:21:57]} 8. h3 {[%emt 0:02:53]} exd5 {[%emt 0:00:00]} 9. exd5 {[%emt 0:00:11]} Re8+ {[%emt 0:00:00]} 10. Be3 {[%emt 0:00:17]} Rxe3+ {[%emt 0:00:00] is cutting edge theory. E90: King's Indian: Classical: Early deviations and 6 h3.} 11. fxe3 {[%emt 0:00:07]} Qe7 {[%emt 0:00:00]} 12. O-O {[%emt 0:02:49]} Nbd7 {[%emt 0:00:00] White is slightly better.} 13. Qd2 {[%emt 0:05:25]} b6 {[%emt 0:00:00]} 14. Rae1 {[%emt 0:08:51] [#]} Ne5 $146 {[%emt 0:00:00]} ({Predecessor:} 14... Ba6 15. Qf2 Rf8 16. Qh4 Re8 17. a4 h6 18. Re2 Bc8 19. Nb5 a6 20. Na7 Bb7 {1-0 Caruana,F (2766)-Erigaisi,A (2701) Titled Tuesday intern op 21st Feb Early blitz 2023 (9)}) 15. Nxe5 {[%emt 0:00:52]} Qxe5 {[%emt 0:00:00]} 16. Rf3 {[%emt 0:00:47]} Bd7 {[%emt 0:00:00]} (16... Qe7 $14) 17. Qf2 $16 {[%emt 0:09:30] Hoping for Rf1.} Rf8 {[%emt 0:00:00]} 18. Rf1 {[%emt 0:03:30]} Qe7 {[%emt 0:00:00]} 19. Rxf6 {[%emt 0:03:19]} Bxf6 {[%emt 0:00:00]} 20. Qxf6 {[%emt 0:00:06]} Qxe3+ {[%emt 0:00:00]} 21. Rf2 {[%emt 0:01:52]} Qxd3 {[%emt 0:00:00]} 22. Qxd6 {[%emt 0:00:20]} Bc8 {[%emt 0:00:00] [#]} 23. Qe7 {[%emt 0:18:26] White is more active.} (23. Qf4 $1 $16) 23... Qxc4 $2 {[%emt 0:00:00][%mdl 8192] [#] Loses the game.} (23... f5 $1 $14) 24. Ne4 $1 $18 {[%emt 0:00:32] And now Nf6+ would win.} ({Weaker is} 24. Qxa7 b5 $11) 24... Bf5 $2 {[%emt 0:00:00] [#]} (24... Qxd5 25. Nf6+ Kg7 26. Nxd5 h5 27. Qe5+ Kh6 28. g4 hxg4 29. hxg4) (24... f5) 25. Rxf5 $1 {[%emt 0:00:56][%mdl 512] White wants to mate with Nf6+.} gxf5 {[%emt 0:00:00]} (25... Qd4+ 26. Rf2) 26. Nf6+ {[%emt 0:00:14] White mates.} Kg7 {[%emt 0:00:00]} 27. Nh5+ {[%emt 0:00:09]} Kg6 {[%emt 0:00:00]} 28. Qf6+ {[%emt 0:00:15]} (28. Qxf8 Qd4+ 29. Kh1 Qc4 $18) 28... Kxh5 {[%emt 0:00:00]} 29. Qxf5+ {[%emt 0:00:05]} Kh4 {[%emt 0:00:00]} 30. Qf6+ {[%emt 0:00:06] Weighted Error Value: White=0.12 (very precise) /Black=0.61} ({Inferior is} 30. Qxh7+ Kg5 31. Qg7+ Kh5 32. Qh7+ Kg5 33. Qg7+ Kh5 34. Qh7+ Kg5 $11) 1-0

[Event "Israel National League 2024"]
[Site "Israel"]
[Date "2024.01.12"]
[Round "2.5"]
[White "Deutsch, Eyal"]
[Black "Postny, Evgeny"]
[Result "0-1"]
[ECO "E32"]
[WhiteElo "2289"]
[BlackElo "2597"]
[Annotator "TA"]
[PlyCount "72"]
[EventDate "2024.01.07"]
[EventType "team-tourn"]
[EventCountry "ISR"]
[SourceTitle "playchess.com"]
[Source "ChessBase"]
[SourceQuality "1"]
[TimeControl "40/5400+30:1800+30"]

{[%evp 18,72,13,10,16,-17,-12,-18,-19,-8,-8,-10,-18,-27,-27,-30,-29,-43,0,-27,0,-8,0,-27,-28,-38,-29,-38,-29,-38,-11,-11,0,-1,-3,-16,0,0,0,0,0,0,0,0,-6,-12,0,-160,-154,-114,-141,-205,-209,-268,-257,-330,-328]} 1. d4 {[%emt 0:00:14]} Nf6 {[%emt 0:00:22]} 2. c4 {[%emt 0:00:11]} e6 {[%emt 0:00:08]} 3. Nc3 {[%emt 0:00:22]} Bb4 {[%emt 0:00:08]} 4. Qc2 {[%emt 0:00:15]} O-O {[%emt 0:01:15]} 5. a3 {[%emt 0:00:06]} Bxc3+ {[%emt 0:00:06]} 6. Qxc3 {[%emt 0:00:08]} b6 {[%emt 0:00:30]} 7. Bg5 {[%emt 0:00:06]} c5 {[%emt 0:01:03]} 8. Nf3 {[%emt 0:01:05]} Bb7 {[%emt 0:11:08]} 9. dxc5 {[%emt 0:01:15]} bxc5 {[%emt 0:00:06]} 10. e3 {[%emt 0:00:05]} a5 {[%emt 0:02:52] E32: Nimzo-Indian: Classical (4 Qc2): 4...0-0.} 11. b3 {[%emt 0:00:09]} d6 {[%emt 0:01:45] [#]} 12. Bxf6 $146 {[%emt 0:00:18]} ({Predecessor:} 12. Rd1 Ra6 13. Bd3 Nbd7 14. Bc2 Qa8 15. Ke2 Rc8 16. h4 h6 17. Bxf6 Nxf6 18. a4 {1-0 Andersen,O (2085)-Ostergaard,R (2180) Politiken Cup 17th 1995 (3)}) 12... Qxf6 {[%emt 0:00:22] The position is equal.} 13. Qxf6 {[%emt 0:00:22]} gxf6 {[%emt 0:00:06]} 14. Nd2 {[%emt 0:00:18]} Nd7 {[%emt 0:04:28]} 15. Be2 {[%emt 0:00:13]} Rfb8 {[%emt 0:02:30]} (15... Bxg2 $2 16. Rg1 $18) 16. f3 {[%emt 0:03:06]} Bc6 {[%emt 0:13:41]} 17. a4 {[%emt 0:00:10]} Rb4 {[%emt 0:05:01]} 18. Rc1 {[%emt 0:00:39]} Rab8 {[%emt 0:01:02]} 19. Rc3 {[%emt 0:00:11]} Kf8 {[%emt 0:04:49]} 20. Kf2 {[%emt 0:02:11]} Ke7 {[%emt 0:05:28]} 21. Bd1 {[%emt 0:08:06]} f5 {[%emt 0:08:18]} 22. Bc2 {[%emt 0:01:47]} h6 {[%emt 0:07:15]} 23. Rd1 {[%emt 0:00:15]} Nf6 {[%emt 0:01:51]} 24. Nb1 {[%emt 0:02:11]} d5 {[%emt 0:08:45]} 25. Na3 {[%emt 0:01:12]} Nd7 {[%emt 0:01:01]} 26. g3 {[%emt 0:07:11]} Rc8 {[%emt 0:04:03]} 27. cxd5 {[%emt 0:15:08]} Bxd5 {[%emt 0:00:07]} 28. e4 $1 {[%emt 0:00:19]} fxe4 {[%emt 0:00:42]} 29. fxe4 {[%emt 0:00:05]} Bxe4 {[%emt 0:01:22]} 30. Bxe4 {[%emt 0:00:18]} Rxe4 {[%emt 0:00:04]} 31. Nc4 $1 {[%emt 0:00:04] Nd6 is the strong threat.} Nf6 {[%emt 0:02:00]} 32. Nxa5 $2 {[%emt 0:00:33] [#]} (32. Kf3 $11) 32... Rxa4 $3 $17 {[%emt 0:02:09][%mdl 512]} 33. bxa4 {[%emt 0:03:01]} ({Don't go for} 33. Nc6+ $2 Rxc6 34. bxa4 Ne4+ 35. Ke1 Nxc3 $19) 33... Ne4+ {[%emt 0:00:05]} 34. Kf3 {[%emt 0:00:29]} (34. Ke1 $17 Nxc3 35. Ra1) 34... Nxc3 $19 {[%emt 0:00:05]} 35. Ra1 {[%emt 0:00:04]} Ra8 {[%emt 0:02:48]} 36. Nb3 {[%emt 0:01:38]} Rxa4 {[%emt 0:00:42] Weighted Error Value: White=0.22 (precise) /Black=0.08 (flawless)} 0-1